Cogmind - Beta 15 @@@ ROGUE MODE // 2025.09.09 @ 02:40:18 Player: Raisen Result: Self-destructed Performance ------------- Evolutions (1) 500 Regions Visited (4) 800 Robots Destroyed (0) 0 Value Destroyed (0) 0 Prototype IDs (0) 0 Alien Tech Used (0) 0 Bonus (200) 200 TOTAL SCORE: 1500 Bonus ------- Pacifist 200 Cogmind --------- Core Integrity 318/400 Matter 129/300 Energy 100/100 System Corruption 0% Temperature Cool (0) Movement Core (50) Location -9/Storage Parts ------- > --- POWER (2) -------- (None) > --- PROPULSION (3) --- (None) > --- UTILITY (2) ------ Visual Processing Unit > --- WEAPON (2) ------- (None) > --- INVENTORY (5) ---- (None) Peak State ------------ > --- POWER ------------ (None) > --- PROPULSION ------- Hover Unit > --- UTILITY ---------- Visual Processing Unit Sensor Array > --- WEAPON ----------- (None) > --- INVENTORY -------- (None) [Rating: 4] Favorites ----------- Power None Propulsion Hover Unit Hover Unit Hover Unit Utility Visual Processing Unit Device Sensor Array Processor Visual Processing Unit Weapon None Build | -11 -10 -10 -9 -9 ------- Run | Yrd Mat Min Mat Sto Slots Evolved 2 | . . . 2 . Power 1 | . . . 1 . Propulsion 1 | . . . 1 . Utility . | . . . . . Weapon . | . . . . . Parts Attached 3 | . 3 . . . Power . | . . . . . Engine . | . . . . . Core . | . . . . . Reactor . | . . . . . Propulsion 1 | . 1 . . . Treads . | . . . . . Leg . | . . . . . Wheel . | . . . . . Hover 1 | . 1 . . . Flight . | . . . . . Utility 2 | . 2 . . . Device 1 | . 1 . . . Storage . | . . . . . Processor 1 | . 1 . . . Hackware . | . . . . . Protection . | . . . . . Artifact . | . . . . . Weapon . | . . . . . Energy Gun . | . . . . . Energy Cannon . | . . . . . Ballistic Gun . | . . . . . Ballistic Cannon . | . . . . . Launcher . | . . . . . Special Weapon . | . . . . . Impact Weapon . | . . . . . Slashing Weapon . | . . . . . Piercing Weapon . | . . . . . Special Melee Weapon . | . . . . . Unidentified Prototypes . | . . . . . Parts Lost 2 | . . 1 . 1 Power . | . . . . . Propulsion 1 | . . 1 . . Utility 1 | . . . . 1 Weapon . | . . . . . Highest Loss Streak 1 | . . 1 . 1 To Critical Strikes . | . . . . . Average Backups . | . . . . . Power . | . . . . . Propulsion . | . . . . . Utility . | . . . . . Weapon . | . . . . . Tool/Special . | . . . . . Unused Backups . | . . . . . Power . | . . . . . Propulsion . | . . . . . Utility . | . . . . . Weapon . | . . . . . Tool/Special . | . . . . . Average Slot Usage (%) 24 | . 22 29 22 22 Hover 1 | . 2 1 . . Device 11 | . 8 14 11 11 Processor 12 | . 11 14 11 11 Peak Build Rating 4 | . 4 4 3 3 Average Rating 2 | . 2 3 3 2 On Entrance 2 | . . 4 3 3 Naked Turns 9 | . 9 . . . Heaviest Build 1 | . 1 1 1 1 Greatest Support 6 | 3 6 6 3 3 Greatest Overweight (x) . | . . . . . Average Overweight (x) . | . . . . . Largest Inventory Capacity 5 | 5 5 5 5 5 Average Capacity 5 | 5 5 5 5 5 Most Carried . | . . . . . Average Carried . | . . . . . Final Capacity 5 | 5 5 5 5 5 Final Carried . | . . . . . Class Distribution -------------------- 100% | Mutant Dominant Class ---------------- Mutant | -10/Materials Mutant | -10/Mines Mutant | -9/Materials Mutant | -9/Storage Resources | -11 -10 -10 -9 -9 ----------- Run | Yrd Mat Min Mat Sto Matter Collected 47 | 47 . . . . Remotely . | . . . . . Salvage Created . | . . . . . Parts . | . . . . . Haulers Intercepted . | . . . . . Recyclers Shooed . | . . . . . Parts Field Recycled . | . . . . . Retrieved Matter . | . . . . . Parts Self-Destructed . | . . . . . Prevented . | . . . . . Kills | -11 -10 -10 -9 -9 ------- Run | Yrd Mat Min Mat Sto Combat Hostiles Destroyed . | . . . . . Classes Destroyed . | . . . . . Best Kill Streak . | . . . . . Combat Bots Only . | . . . . . Max Kills in Single Turn . | . . . . . Gunslinging . | . . . . . Exploded . | . . . . . Melee . | . . . . . Uniques/NPCs Destroyed . | . . . . . Combat | -11 -10 -10 -9 -9 -------- Run | Yrd Mat Min Mat Sto Hostile Shots Fired 37 | . 8 11 8 10 Missed 17 | . 6 2 7 2 Hits 20 | . 2 9 1 8 Projectile 20 | . 2 9 1 8 Damage Taken 233 | . 22 120 18 73 Core 170 | . 10 78 18 64 Absorbed by Shields 27 | . . . . 27 Core Remaining (%) 82 | 100 . 64 . . Volleys Fired . | . . . . . Largest . | . . . . . Hottest . | . . . . . Shots Fired . | . . . . . Gun . | . . . . . Cannon . | . . . . . Launcher . | . . . . . Special . | . . . . . Kinetic . | . . . . . Thermal . | . . . . . Explosive . | . . . . . Electromagnetic . | . . . . . Robot Hit Streak . | . . . . . Robot Miss Streak . | . . . . . Penetration Max . | . . . . . Secondary Targets . | . . . . . Shots Hit Robots . | . . . . . Core Hits 1 | . . 1 . . Critical Kills . | . . . . . Critical Parts Destroyed . | . . . . . Critical Strikes . | . . . . . Melee Attacks . | . . . . . Impact . | . . . . . Slashing . | . . . . . Piercing . | . . . . . Sneak Attacks . | . . . . . Combat Hostiles . | . . . . . Follow-up Attacks . | . . . . . Damage Inflicted 9 | . . 9 . . Guns . | . . . . . Cannons . | . . . . . Explosions . | . . . . . Melee . | . . . . . Ramming 9 | . . 9 . . Kinetic . | . . . . . Thermal . | . . . . . Explosive . | . . . . . Electromagnetic . | . . . . . Impact . | . . . . . Slashing . | . . . . . Piercing . | . . . . . Highest Corruption . | . . . . . Average Corruption . | . . . . . Corruption Purged . | . . . . . Corruption Blocked . | . . . . . Overload Shots . | . . . . . Overflow Damage . | . . . . . Projectiles . | . . . . . Explosions . | . . . . . Melee . | . . . . . Knockbacks . | . . . . . Impact . | . . . . . Kinetic . | . . . . . Secondary . | . . . . . Self-Inflicted Damage 4 | . . 4 . . Shots . | . . . . . Rammed 1 | . . 1 . . Targets Rammed 1 | . . 1 . . Kicked . | . . . . . Crushed . | . . . . . Highest Temperature . | . . . . . Average Temperature . | . . . . . Received Heat Transfer 113 | . 12 66 9 26 Siege Activations . | . . . . . Martial Activations . | . . . . . Shielding Activations . | . . . . . Robots Disrupted . | . . . . . Combat Hostiles . | . . . . . Robots Corrupted . | . . . . . Combat Hostiles . | . . . . . Parts Fried . | . . . . . Impact Corruptions . | . . . . . Robots Melted . | . . . . . Combat Hostiles . | . . . . . Parts Melted . | . . . . . Heat Transferred . | . . . . . Parts Sabotaged . | . . . . . Parts Stolen . | . . . . . Parts Stripped . | . . . . . Power Chain Reactions . | . . . . . Alert | -11 -10 -10 -9 -9 ------- Run | Yrd Mat Min Mat Sto Maximum Alert Level . | . . . . . Low Security (%) 100 | 100 100 100 100 100 Level 1 . | . . . . . Level 2 . | . . . . . Level 3 . | . . . . . Level 4 . | . . . . . Level 5 . | . . . . . High Security . | . . . . . Max Security . | . . . . . Peak Influence 40 | . . 40 11 15 Initial 11 | . . . 11 . Average 5 | . . 14 5 2 Influence Increases 77 | . . 60 . 17 Successful Hack 2 | . . . . 2 Partial Spotted 15 | . . . . 15 Lose Combat Pursuer 60 | . . 60 . . Influence Decreases 72 | . . 30 30 12 Entered New Map 19 | . . . 19 . Time Decay 43 | . . 30 11 2 Lost Part 10 | . . . . 10 Squads Dispatched 6 | . 4 . 1 1 Investigation 4 | . 3 . 1 . Extermination . | . . . . . Reinforcement 2 | . 1 . . 1 Assault . | . . . . . Garrison . | . . . . . Intercept . | . . . . . Searches Triggered . | . . . . . Construction Impeded . | . . . . . Haulers Reinforced . | . . . . . Active Scanning Responses . | . . . . . Cargo Convoy Interrupts . | . . . . . Stealth | -11 -10 -10 -9 -9 --------- Run | Yrd Mat Min Mat Sto Distress Signals . | . . . . . Communications Jammed . | . . . . . Distress Signals . | . . . . . Times Spotted 26 | . 10 4 7 5 Peak Tracking Total 10 | . 10 2 9 4 Tactical Retreats 2 | . . 2 . . Traps | -11 -10 -10 -9 -9 ------- Run | Yrd Mat Min Mat Sto Traps Triggered 6 | . 3 . 1 2 Indirectly . | . . . . . Trap Hack Attempts . | . . . . . Triggered . | . . . . . Disarmed . | . . . . . Reprogrammed . | . . . . . Reused . | . . . . . Traps Extracted . | . . . . . Installed . | . . . . . Triggered . | . . . . . Machines | -11 -10 -10 -9 -9 ---------- Run | Yrd Mat Min Mat Sto Machines Disabled . | . . . . . Max in Single Turn . | . . . . . Machines Repaired . | . . . . . Machines Dismantled . | . . . . . Machines Sabotaged . | . . . . . Overloaded Fab Kills . | . . . . . Hacking | -11 -10 -10 -9 -9 --------- Run | Yrd Mat Min Mat Sto Machines Accessed 2 | . 1 . . 1 Terminals 2 | . 1 . . 1 Fabricators . | . . . . . Repair Stations . | . . . . . Recycling Units . | . . . . . Scanalyzers . | . . . . . Garrison Access . | . . . . . Total Hacks 4 | . 3 . . 1 Successful 2 | . 1 . . 1 Failed 2 | . 2 . . . Catastrophic . | . . . . . Database Lockouts . | . . . . . Manual 3 | . 3 . . . Terminals 4 | . 3 . . 1 Fabricators . | . . . . . Repair Stations . | . . . . . Recycling Units . | . . . . . Scanalyzers . | . . . . . Garrison Access . | . . . . . Terminal Hacks 2 | . 1 . . 1 Open Door 1 | . . . . 1 Zone Layout 1 | . 1 . . . Fabricator Hacks . | . . . . . Repair Station Hacks . | . . . . . Recycling Unit Hacks . | . . . . . Scanalyzer . | . . . . . Garrison Access Hacks . | . . . . . Unauthorized Hacks . | . . . . . Terminals . | . . . . . Fabricators . | . . . . . Repair Stations . | . . . . . Recycling Units . | . . . . . Scanalyzers . | . . . . . Garrison Access . | . . . . . Data Cores Recovered . | . . . . . Used . | . . . . . Hacking Detections 1 | . 1 . . . Full Trace Events . | . . . . . Feedback Events . | . . . . . Feedback Blocked . | . . . . . Robot Schematics Acquired . | . . . . . Robots Built . | . . . . . Authchips . | . . . . . Time . | . . . . . Total Robot Build Rating . | . . . . . Part Schematics Acquired . | . . . . . Parts Built . | . . . . . Authchips . | . . . . . Time . | . . . . . Total Part Build Rating . | . . . . . Parts Repaired . | . . . . . Time . | . . . . . Parts Recycled . | . . . . . Recycled Matter . | . . . . . Retrieved Matter . | . . . . . Retrieved Components . | . . . . . Parts Scanalyzed . | . . . . . Part Schematics Acquired . | . . . . . Parts Damaged . | . . . . . Bothacking | -11 -10 -10 -9 -9 ------------ Run | Yrd Mat Min Mat Sto Used RIF Installer . | . . . . . Robots Hacked . | . . . . . Non-combat . | . . . . . Combat . | . . . . . Robot Hacks Applied . | . . . . . Relay Couplers Released . | . . . . . Fabnet Peak Effective % . | . . . . . Robots Rewired . | . . . . . Allies Hacked . | . . . . . Hacks Repelled . | . . . . . Allies | -11 -10 -10 -9 -9 -------- Run | Yrd Mat Min Mat Sto Total Allies . | . . . . . Largest Group . | . . . . . Highest-Rated Group . | . . . . . Highest-Rated Ally . | . . . . . Total Orders . | . . . . . Ally Attacks . | . . . . . Total Damage . | . . . . . Kills . | . . . . . Allies Corrupted . | . . . . . Allies Melted . | . . . . . Intel | -11 -10 -10 -9 -9 ------- Run | Yrd Mat Min Mat Sto Active Infowar (turns) 284 | . 90 97 40 57 Optics 284 | . 90 97 40 57 Sensors 255 | . 64 97 40 54 Robot Analysis Total . | . . . . . Derelict Logs Recovered 2 | . . 2 . . Drone Launches . | . . . . . Drone Recoveries . | . . . . . Exploration | -11 -10 -10 -9 -9 ------------- Run | Yrd Mat Min Mat Sto Turns Passed 303 | 10 99 97 40 57 Spaces Moved 535 | 19 184 191 79 62 Core 503 | 19 156 187 79 62 Treads . | . . . . . Legs . | . . . . . Wheels . | . . . . . Hover 32 | . 28 4 . . Flight . | . . . . . Fastest Speed 50 | 50 50 50 50 50 Average Speed 50 | 50 51 50 50 50 Slowest Speed 60 | 50 60 60 50 50 Overloaded Moves . | . . . . . Propulsion Burnouts . | . . . . . Robots Hopped . | . . . . . Potential Cave-ins . | . . . . . Cave-ins Triggered . | . . . . . Exploration Rate (%) 25 | 4 36 56 14 17 Regions Visited 4 Branch Regions 2 Pre-discovered Areas . | . . . . . Known Exits Taken 1 | . . . 1 . Unknown Exits Taken 3 | 1 1 1 . . Scrap Searched . | . . . . . Spaces Dug . | . . . . . Terrain Destroyed . | . . . . . Melee . | . . . . . Projectile . | . . . . . AOE . | . . . . . Terrain Rammed . | . . . . . Walls Destroyed . | . . . . . Machines Disabled . | . . . . . Actions | -11 -10 -10 -9 -9 --------- Run | Yrd Mat Min Mat Sto Total 560 | 18 186 191 78 87 Wait 4 | . . . . 4 Move 531 | 18 183 190 78 62 Hop . | . . . . . Pick Up . | . . . . . Fast Attach 3 | . 3 . . . Attach . | . . . . . Detach . | . . . . . Swap . | . . . . . Drop . | . . . . . Fire . | . . . . . Melee . | . . . . . Ram 1 | . . 1 . . Kick . | . . . . . Crush . | . . . . . Escape Stasis 21 | . . . . 21 Rewire . | . . . . . Trap . | . . . . . Miscellaneous . | . . . . . Route ------- -11/Scrapyard -10/Materials -10/Mines -9/Materials -9/Storage History --------- Turn | Location | Event 3 | -11/Scrapyard | Discovered new exit (range 15) 11 | -11/Scrapyard | Entered Materials 50 | -10/Materials | Discovered new exit (range 16) 110 | -10/Materials | Entered Mines 189 | -10/Mines | Learned 2 Materials zone layouts 199 | -10/Mines | Discovered new exit (range 16) 200 | -10/Mines | Learned Materials security intel 207 | -10/Mines | Entered Materials 207 | -9/Materials | Evolved 2 slots: Power x1, Propulsion x1 208 | -9/Materials | Identified exit to Storage 247 | -9/Materials | Entered Storage 304 | -9/Storage | Build established: Mutant 304 | -9/Storage | Self-destructed Last Messages --------------- 00289_ K-01 Serf collects debris. 00290_ Field strength at 16. 00291_ Field strength at 10. 00292_ Field strength at 4. 00293_ Stasis field depleted. 00293_ Triggered Stasis Trap. 00293_ A bubble of rippling energy engulfs the area. 00293_ Field strength at 94. 00294_ Field strength at 88. 00295_ Field strength at 82. 00296_ Field strength at 73. 00297_ Field strength at 67. 00300_ K-01 Serf collects debris. 00301_ Sensor Array destroyed. 00302_ Field strength at 48. 00302_ K-01 Serf collects debris. 00303_ Field strength at 42. 00303_ U-05 Engineer lays Concrete. 00303_ K-01 Serf collects debris. Map ----- +----------------------------------------------------+ | ???????????????????????????????????????????? | | ???????????????????????????????????????????? | | ???????????????????????????????????????????? | | ???????????????????????????????????????????? | | ???????????????????????????????????????????? | | ???????????????????????????????????????????? | | ???????????????????????????????????????????? | | ???????????????????????????????????????????? | | ???????????????????????????????????????????? | | ???????????????????????????????????????????? | | ???????????????????????????????????????????? | | ???????????????????????????????????????????? | | ???????????????????????????????????????????? | | ???????????????????????????????????????????? | | ???????????????????????????????????????????? | | ??????????????????????"""??????????????????? | | ?????????????????????? ??????????????????? | | ??????????????????????"""??????????????????? | | ??????????????????????"""??????????????????? | | ???????????????????????""??????????????????? | | ??????????????????????? ????##????????????? | | ??????????????????????##+##?? #######??????? | | ??????????????????????# +? #??????? | | ???????????????????#### Y#? #??????? | | ???????????????????# # #??????? | | ???????????????????# @# #??????? | | ???????? ########### ul/ """" ???????? | | ???????# u # """" ???????? | | ??????? # """" ????????? | | ??????????## k #? """" ?????????? | | ???????????#k #?######?????????? | | ???????????# #????????????????? | | ???????????## g #????????????????? | | ????????????# g ###??????????????? | | ????????????# #### #T######?????????? | | ????????????# ????# # #!!!!#?????????? | | ????????????# ?????# + #?????????? | | ????????????#??????# # #!!!!#?????????? | | ???????????????????#+## ########?????????? | | ??????????????????????# #????????????????? | | ??????????????????????# #????????????????? | | ??????????????????????# #????????????????? | | ??????????????????????# ###########??????? | | ??????????????????????# + #??????? | | ??????????????????????# # #??????? | | ??????????????????????# # #??????? | | ??????????????????????# + """""" #??????? | | ??????????????????????# # "?????????????? | | ??????????????????????# # "?????????????? | | ??????????????????????# # "?????????????? | +----------------------------------------------------+ Best States ------------- Heat Dissipation 28 Energy Generation 5 Energy Capacity 100 Matter Stores 147 Matter Capacity 300 Sight Range 18 Robot Scan Range 14 Terrain Scan Density 10 Evasion (%) 53 Item Schematics ----------------- None Robot Schematics ------------------ None Fabricated ------------ Nothing Repaired ---------- Nothing Alien Tech Used ----------------- None Achievements -------------- None Challenges ------------ None Game ------ Seed CouplerPlexusComputer Manual? 0 Play Time 00:05:27 Cumulative 12.5 hours Start 2025.09.09 @ 02:35:21 End 2025.09.09 @ 02:40:18 Sessions 1 Manual Loads 0 Difficulty Rogue Special Mode None Game No. 21 Rogue 21 Adventurer 0 Explorer 0 Win Type - Total 0 Types 0/0/0/0/0/0/0/0/0/0 Lore% 9 Gallery% 17 Achievement% 20 Wizard Run 0 Options --------- Layout 1 ASCII 0 Keyboard 0 Movement Mouse Keybinds 0 Fullscreen 2 Font 24/Smallcaps Map View 50x35 Zoom Use 0% Tactical HUD 1 Map Filters NONE Filters NONE Steam 1 RUN: 85c10de0-2f70-4f11-bdda-6c556266fbc8